fUSD/lending_fUSD_20240814
["ID","MTS","AMOUNT","RATE_DAILY","PERIOD"]
[334854167,1723609853337,-500.0,0.0001452,2]
[334854168,1723609853348,-1282.27,0.0001452,2]
[334854169,1723609853358,-500.0,0.0001452,2]
[334854170,1723609853367,-6536.97,0.0001452,2]
[334854171,1723609853376,-500.0,0.0001452,2]
[334854172,1723609853386,-2669.17,0.0001452,2]
[334854173,1723609853395,-1328.52,0.0001452,2]
[334854174,1723609853405,-500.0,0.0001452,2]
[334854175,1723609853415,-500.0,0.0001452,2]
[334854176,1723609853425,-9772.12,0.0001452,2]
[334854177,1723609853435,-3638.87,0.0001452,2]
[334854178,1723609853445,-1643.29,0.0001452,2]
[334854179,1723609853454,-500.0,0.0001452,2]
[334854180,1723609853464,-500.0,0.0001452,2]
[334854181,1723609853474,-756.9,0.0001452,2]
[334854182,1723609853485,-500.0,0.0001452,2]
[334854183,1723609853495,-510.29,0.0001452,2]
[334854184,1723609853505,-1412.99,0.0001452,2]
[334854185,1723609853516,-672.06,0.0001452,2]
[334854186,1723609853526,-500.0,0.0001452,2]
[334854187,1723609853535,-1317.22,0.0001452,2]
[334854188,1723609853544,-573.39,0.0001452,2]
[334854189,1723609853554,-500.0,0.0001452,2]
[334854190,1723609853564,-2594.57,0.0001452,2]
[334854191,1723609853574,-1170.34,0.0001452,2]
[334854192,1723609853583,-960.18,0.0001452,2]
[334854193,1723609853592,-2279.45,0.0001452,2]
[334854194,1723609853601,-500.0,0.0001452,2]
[334854195,1723609853611,-1430.72,0.0001452,2]
[334854196,1723609853620,-699.32,0.0001452,2]
[334854197,1723609853630,-400.0,0.0001452,2]
[334854198,1723609853640,-500.0,0.0001452,2]
[334854199,1723609853649,-500.0,0.0001452,2]
[334854200,1723609853659,-2593.85,0.0001452,2]
[334854201,1723609853669,-709.11,0.0001452,2]
[334854202,1723609853678,-584.01,0.0001452,2]
[334854203,1723609853687,-2203.65,0.0001452,2]
[334854204,1723609853697,-500.0,0.0001452,2]
[334854205,1723609853706,-1289.07,0.0001452,2]
[334854206,1723609853715,-1545.87,0.0001452,2]
[334854207,1723609853726,-4744.17,0.0001452,2]
[334854208,1723609853735,-721.29,0.0001452,2]
[334854209,1723609853746,-693.69,0.0001452,2]
[334854210,1723609853756,-500.0,0.0001452,2]
[334854211,1723609853766,-500.0,0.0001452,2]
[334854212,1723609853775,-702.63,0.0001452,2]
[334854213,1723609853785,-500.0,0.0001452,2]
[334854214,1723609853796,-500.0,0.0001452,2]
[334854215,1723609853806,-1337.5,0.0001452,2]
[334854216,1723609853815,-2072.36,0.0001452,2]
[334854217,1723609853825,-1595.04,0.0001452,2]
[334854218,1723609853835,-500.0,0.0001452,2]
[334854219,1723609853845,-632.26,0.0001452,2]
[334854220,1723609853855,-500.0,0.0001452,2]
[334854221,1723609853864,-934.24,0.0001452,2]
[334854222,1723609853874,-1847.69,0.0001452,2]
[334854223,1723609853883,-500.0,0.0001452,2]
[334854224,1723609853893,-921.25,0.0001452,2]
[334854225,1723609853902,-606.48,0.0001452,2]
[334854226,1723609853912,-1284.98,0.0001452,2]
[334854227,1723609853922,-500.0,0.0001452,2]
[334854228,1723609853932,-500.0,0.0001452,2]
[334854229,1723609853942,-500.0,0.0001452,2]
[334854230,1723609853951,-794.79,0.0001452,2]
[334854231,1723609853960,-6567.88,0.0001452,2]
[334854232,1723609853970,-1821.67,0.0001452,2]
[334854233,1723609853979,-958.01,0.0001452,2]
[334854234,1723609853991,-1300.27,0.0001452,2]
[334854235,1723609854001,-1529.8,0.0001452,2]
[334854236,1723609854010,-500.0,0.0001452,2]
[334854237,1723609854020,-500.0,0.0001452,2]
[334854238,1723609854030,-7894.91,0.0001452,2]
[334854239,1723609854041,-962.46,0.0001452,2]
[334854240,1723609854050,-500.0,0.0001452,2]
[334854241,1723609854059,-784.56,0.0001452,2]
[334854242,1723609854070,-2122.48,0.0001452,2]
[334854243,1723609854079,-500.0,0.0001452,2]
[334854244,1723609854089,-1436.52,0.0001452,2]
[334854245,1723609854098,-602.19,0.0001452,2]
[334854246,1723609854108,-500.0,0.0001452,2]
[334854247,1723609854119,-2443.79,0.0001452,2]
[334854248,1723609854129,-500.0,0.0001452,2]
[334854249,1723609854139,-1117.72,0.0001452,2]
[334854250,1723609854148,-1141.56,0.0001452,2]
[334854251,1723609854158,-1038.02,0.0001452,2]
[334854252,1723609854167,-500.0,0.0001452,2]
[334854253,1723609854177,-2826.18,0.0001452,2]
[334854254,1723609854186,-626.15,0.0001452,2]
[334854255,1723609854196,-1794.03,0.0001452,2]
[334854256,1723609854499,-1000.31,0.0001452,2]
[334854257,1723609854509,-789.7,0.0001452,2]
[334854258,1723609854518,-1287.7,0.0001452,2]
[334854259,1723609854527,-500.0,0.0001452,2]
[334854260,1723609854536,-500.0,0.0001452,2]
[334854261,1723609854545,-542.16,0.0001452,2]
[334854262,1723609854555,-824.39,0.0001452,2]
[334854263,1723609854564,-500.0,0.0001452,2]
[334854264,1723609854573,-500.0,0.0001452,2]
[334854265,1723609854583,-500.0,0.0001452,2]
[334854266,1723609854593,-500.0,0.0001452,2]
[334854267,1723609854602,-500.0,0.0001452,2]
[334854268,1723609854612,-1448.79,0.0001452,2]
[334854269,1723609854622,-500.0,0.0001452,2]
[334854270,1723609854631,-500.0,0.0001452,2]
[334854271,1723609854640,-650.93,0.0001452,2]
[334854272,1723609854651,-1750.64,0.0001452,2]
[334854273,1723609854661,-1144.6,0.0001452,2]
[334854274,1723609854670,-500.0,0.0001452,2]
[334854275,1723609854679,-500.0,0.0001452,2]
[334854276,1723609854689,-500.0,0.0001452,2]
[334854277,1723609854699,-500.0,0.0001452,2]
[334854278,1723609854708,-12775.62,0.0001452,2]
[334854279,1723609854718,-207.4519419,0.0001452,2]
[334854280,1723609854727,-3428.13,0.0001452,2]
[334854281,1723609854737,-1230.28,0.0001452,2]
[334854282,1723609854746,-500.0,0.0001452,2]
[334854283,1723609854756,-500.0,0.0001452,2]
[334854284,1723609854765,-1638.12,0.0001452,2]
[334854285,1723609854775,-500.0,0.0001452,2]
[334854286,1723609854785,-500.0,0.0001452,2]
[334854287,1723609854794,-461.64668493,0.0001452,2]
[334854288,1723609854803,-500.0,0.0001452,2]
[334854289,1723609854813,-2040.24,0.0001452,2]
[334854290,1723609854822,-1515.13,0.0001452,2]
[334854291,1723609854832,-683.16,0.0001452,2]
[334854292,1723609854841,-1072.71,0.0001452,2]
[334854293,1723609854851,-3552.15,0.0001452,2]
[334854294,1723609854861,-500.0,0.0001452,2]
[334854295,1723609854870,-500.0,0.0001452,2]
[334854296,1723609854880,-1939.38,0.0001452,2]
[334854297,1723609854889,-567.28,0.0001452,2]
[334854298,1723609854899,-1452.68,0.0001452,2]
[334854299,1723609854909,-500.0,0.0001452,2]
[334854300,1723609854919,-500.0,0.0001452,2]
[334854301,1723609854929,-500.0,0.0001452,2]
[334854302,1723609854938,-1066.26,0.0001452,2]
[334854303,1723609854947,-500.0,0.0001452,2]
[334854304,1723609854957,-2040.77,0.0001452,2]
[334854305,1723609854966,-524.59,0.0001452,2]
[334854306,1723609854976,-500.0,0.0001452,2]
[334854307,1723609854986,-500.0,0.0001452,2]
[334854308,1723609855000,-751.22,0.0001452,2]
[334854309,1723609855009,-500.0,0.0001452,2]
[334854310,1723609855018,-500.0,0.0001452,2]
[334854311,1723609855028,-500.0,0.0001452,2]
[334854312,1723609855038,-1978.27,0.0001452,2]
[334854313,1723609855048,-1013.74,0.0001452,2]
[334854314,1723609855057,-500.0,0.0001452,2]
[334854315,1723609855067,-500.0,0.0001452,2]
[334854316,1723609855076,-3363.31,0.0001452,2]
[334854317,1723609855085,-547.18,0.0001452,2]
[334854318,1723609855095,-500.0,0.0001452,2]
[334854319,1723609855104,-500.0,0.0001452,2]
[334854320,1723609855113,-3032.15,0.0001452,2]
[334854321,1723609855123,-500.0,0.0001452,2]
[334854322,1723609855132,-8625.96,0.0001452,2]
[334854323,1723609855141,-1762.22,0.0001452,2]
[334854324,1723609855151,-500.0,0.0001452,2]
[334854325,1723609855161,-1353.62,0.0001452,2]
[334854326,1723609855170,-1289.65,0.0001452,2]
[334854327,1723609855179,-508.90010372,0.0001452,2]
[334854328,1723609855188,-500.0,0.0001452,2]
[334854329,1723609855198,-893.73,0.0001452,2]
[334854330,1723609855208,-500.0,0.0001452,2]
[334854331,1723609855217,-500.0,0.0001452,2]
[334854332,1723609855227,-267.69620192,0.0001452,2]
[334854333,1723609855237,-500.0,0.0001452,2]
[334854334,1723609855246,-497.89830494,0.0001452,2]
[334854335,1723609855255,-2410.79,0.0001452,2]
[334854336,1723609855264,-1137.78,0.0001452,2]
[334854337,1723609855274,-500.0,0.0001452,2]
[334854338,1723609855283,-684.86,0.0001452,2]
[334854339,1723609855294,-346.37914226,0.0001452,2]
[334854340,1723609855304,-504.95,0.0001452,2]
[334854341,1723609855313,-806.17,0.0001452,2]
[334854342,1723609855322,-3271.69,0.0001452,2]
[334854343,1723609855331,-859.31,0.0001452,2]
[334854344,1723609855341,-500.0,0.0001452,2]
[334854345,1723609855350,-500.0,0.0001452,2]
[334854346,1723609855359,-727.71,0.0001452,2]
[334854347,1723609855369,-500.0,0.0001452,2]
[334854348,1723609855378,-500.0,0.0001452,2]
[334854349,1723609855387,-500.0,0.0001452,2]
[334854350,1723609855397,-500.0,0.0001452,2]
[334854351,1723609855407,-528.47,0.0001452,2]
[334854352,1723609855417,-1104.85,0.0001452,2]
[334854353,1723609855426,-500.0,0.0001452,2]
[334854354,1723609855436,-197.563972,0.00014521,2]
[334854355,1723609855446,-200.0,0.00014773,2]
[334854356,1723609855456,-7198.21,0.00014783,2]
[334854357,1723609855466,-1410.06,0.00014783,2]
[334854358,1723609855477,-625.36,0.00014783,2]
[334854359,1723609855487,-500.0,0.00014783,2]
[334854360,1723609855496,-920.35,0.00014783,2]
[334854361,1723609855507,-1055.09,0.00014783,2]
[334854362,1723609855517,-1754.45,0.00014783,2]
[334854363,1723609855526,-4482.96,0.00014783,2]
[334854364,1723609855535,-500.0,0.00014783,2]
[334854365,1723609855545,-1145.05,0.00014783,2]
[334854366,1723609855555,-500.0,0.00014783,2]
[334854367,1723609855564,-1316.41,0.00014783,2]
[334854368,1723609855574,-1055.66,0.00014783,2]
[334854369,1723609855583,-500.0,0.00014783,2]
[334854370,1723609855593,-500.0,0.00014783,2]
[334854371,1723609855602,-4416.77,0.00014793,2]
[334854372,1723609855611,-2689.76,0.00014793,2]
[334854373,1723609855621,-2554.53,0.00014793,2]
[334854374,1723609855630,-2895.53,0.00014793,2]
[334854375,1723609855640,-1141.74,0.00014793,2]
[334854376,1723609855649,-521.36,0.00014793,2]
[334854377,1723609855658,-542.34,0.00014793,2]
[334854378,1723609855668,-58647.65,0.00014793,2]
[334854379,1723609855678,-1314.87,0.00014793,2]
[334854380,1723609855687,-7327.95,0.00014793,2]
[334854381,1723609855697,-253.750419,0.00014793,2]
[334854382,1723609855707,-167.401742,0.00014793,2]
[334854383,1723609855716,-3009.04,0.00014793,2]
[334854384,1723609855725,-156.685771,0.00014793,2]
[334854385,1723609855736,-2253.79,0.00014793,2]
[334854386,1723609855747,-3871.06,0.00014793,2]
[334854387,1723609855758,-500.0,0.00014793,2]
[334854388,1723609855767,-500.0,0.00014793,2]
[334854389,1723609855778,-1830.76,0.00014793,2]
[334854390,1723609855788,-857.71,0.00014793,2]
[334854391,1723609855797,-500.0,0.00014793,2]
[334854392,1723609855807,-2267.76,0.00014793,2]
[334854393,1723609855818,-2386.75,0.00014793,2]
[334854394,1723609855827,-2013.35,0.00014793,2]
[334854395,1723609855837,-500.0,0.00014793,2]
[334854396,1723609855846,-949.37,0.00014793,2]
[334854397,1723609855856,-500.0,0.00014793,2]
[334854398,1723609855866,-1349.62,0.00014793,2]
[334854399,1723609855875,-500.0,0.00014793,2]
[334854400,1723609855885,-3827.33,0.00014793,2]
[334854401,1723609855895,-2013.19,0.00014793,2]
[334854402,1723609855904,-1443.5,0.00014793,2]
[334854403,1723609855914,-949.47,0.00014793,2]
[334854404,1723609855924,-1517.58,0.00014793,2]
[334854405,1723609855934,-3668.14,0.00014793,2]
[334854406,1723609855943,-2773.87,0.00014793,2]
[334854407,1723609855954,-500.0,0.00014793,2]
[334854408,1723609855963,-687.08,0.00014793,2]
[334854409,1723609855973,-2141.81,0.00014793,2]
[334854410,1723609855982,-1091.39,0.00014793,2]
[334854411,1723609855995,-3333.3,0.00014793,2]
[334854412,1723609856004,-1504.35,0.00014793,2]
[334854413,1723609856015,-1571.19,0.00014793,2]
[334854414,1723609856025,-1686.8,0.00014793,2]
[334854415,1723609856035,-2339.03,0.00014793,2]
[334854416,1723609856044,-2952.44,0.00014793,2]
[334854417,1723609856054,-2491.82,0.00014793,2]
[334854418,1723609856063,-6411.45,0.00014793,2]
[334854419,1723609856074,-1105.99,0.00014794,2]
[334854420,1723609856084,-921.57,0.00014794,2]
[334854421,1723609856093,-500.0,0.00014794,2]
[334854422,1723609856103,-500.0,0.00014794,2]
[334854423,1723609856113,-500.0,0.00014794,2]
[334854424,1723609856122,-500.0,0.00014794,2]
[334854425,1723609856132,-500.0,0.00014794,2]
[334854426,1723609856142,-799.62,0.00014794,2]
[334854427,1723609856151,-500.0,0.00014794,2]
[334854428,1723609856160,-500.0,0.00014794,2]
[334854429,1723609856169,-500.0,0.00014794,2]
[334854430,1723609856179,-500.0,0.00014794,2]
[334854431,1723609856189,-905.52,0.00014794,2]
[334854432,1723609856199,-500.0,0.00014794,2]
[334854433,1723609856209,-500.0,0.00014794,2]
[334854434,1723609856220,-500.0,0.00014794,2]
[334854435,1723609856230,-500.0,0.00014794,2]
[334854436,1723609856239,-500.0,0.00014794,2]
[334854437,1723609856249,-877.68,0.00014794,2]
[334854438,1723609856258,-1597.53,0.00014794,2]
[334854439,1723609856268,-500.0,0.00014794,2]
[334854440,1723609856277,-500.0,0.00014794,2]
[334854441,1723609856287,-500.0,0.00014794,2]
[334854442,1723609856297,-1514.3,0.00014794,2]
[334854443,1723609856306,-500.0,0.00014794,2]
[334854444,1723609856316,-500.0,0.00014794,2]
[334854445,1723609856326,-500.0,0.00014794,2]
[334854446,1723609856335,-1130.83,0.00014794,2]
[334854447,1723609856345,-500.0,0.00014794,2]
[334854448,1723609856355,-500.0,0.00014794,2]
[334854449,1723609856365,-500.0,0.00014794,2]
[334854450,1723609856375,-500.0,0.00014794,2]
[334854451,1723609856386,-500.0,0.00014794,2]
[334854452,1723609856395,-500.0,0.00014794,2]
[334854453,1723609856405,-500.0,0.00014794,2]
[334854454,1723609856415,-500.0,0.00014794,2]
[334854455,1723609856424,-512.96,0.00014794,2]
[334854456,1723609856435,-500.0,0.00014794,2]
[334854457,1723609856445,-500.0,0.00014794,2]
[334854458,1723609856455,-500.0,0.00014794,2]
[334854459,1723609856466,-500.0,0.00014794,2]
[334854460,1723609856476,-500.0,0.00014794,2]
[334854461,1723609856486,-500.0,0.00014794,2]
[334854462,1723609856496,-825.54,0.00014794,2]
[334854463,1723609856507,-500.0,0.00014794,2]
[334854464,1723609856517,-500.0,0.00014794,2]
[334854465,1723609856526,-500.0,0.00014794,2]
[334854466,1723609856535,-688.2,0.00014794,2]
[334854467,1723609856547,-500.0,0.00014794,2]
[334854468,1723609856556,-500.0,0.00014794,2]
[334854469,1723609856566,-508.74,0.00014794,2]
[334854470,1723609856576,-966.26,0.00014794,2]
[334854471,1723609856586,-500.0,0.00014794,2]
[334854472,1723609856595,-500.0,0.00014794,2]
[334854473,1723609856606,-882.14,0.00014794,2]
[334854474,1723609856616,-500.0,0.00014794,2]
[334854475,1723609856626,-500.0,0.00014794,2]
[334854476,1723609856636,-500.0,0.00014794,2]
[334854477,1723609856646,-500.0,0.00014794,2]
[334854478,1723609856656,-500.0,0.00014794,2]
[334854479,1723609856666,-500.0,0.00014794,2]
[334854480,1723609856676,-500.0,0.00014794,2]
[334854481,1723609856685,-521.92,0.00014794,2]
[334854482,1723609856695,-573.91983138,0.00014794,2]
[334854483,1723609856705,-500.0,0.00014794,2]
[334854484,1723609856714,-703.01,0.00014794,2]
[334854485,1723609856724,-500.0,0.00014794,2]
[334854486,1723609856735,-1055.94,0.00014794,2]
[334854487,1723609856745,-500.0,0.00014794,2]
[334854488,1723609856755,-500.0,0.00014794,2]
[334854489,1723609856765,-500.0,0.00014794,2]
[334854490,1723609856775,-500.0,0.00014794,2]
[334854491,1723609856784,-646.22,0.00014794,2]
[334854492,1723609856794,-2252.71,0.00014794,2]
[334854493,1723609856803,-342.7378889,0.00014794,2]
[334854494,1723609856813,-500.0,0.00014794,2]
[334854495,1723609856821,-880.31,0.00014794,2]
[334854496,1723609856898,-500.0,0.00014794,2]
[334854497,1723609856909,-1294.46,0.00014794,2]
[334854498,1723609856919,-500.0,0.00014794,2]
[334854499,1723609856929,-500.0,0.00014794,2]
[334854500,1723609856939,-951.77,0.00014794,2]
[334854501,1723609856948,-500.0,0.00014794,2]
[334854502,1723609856957,-500.0,0.00014794,2]
[334854503,1723609856966,-501.2,0.00014794,2]
[334854504,1723609856976,-2007.46,0.00014794,2]
[334854505,1723609856985,-1637.64,0.00014794,2]
[334854506,1723609856998,-500.0,0.00014794,2]
[334854507,1723609857008,-317.8079455,0.00014794,2]
[334854508,1723609857017,-500.0,0.00014794,2]
[334854509,1723609857027,-500.0,0.00014794,2]
[334854510,1723609857037,-500.0,0.00014794,2]
[334854511,1723609857047,-532.67,0.00014794,2]
[334854512,1723609857056,-500.0,0.00014794,2]
[334854513,1723609857065,-500.0,0.00014794,2]
[334854514,1723609857077,-500.0,0.00014794,2]
[334854515,1723609857086,-1243.67,0.00014794,2]
[334854516,1723609857096,-1029.48,0.00014794,2]
[334854517,1723609857105,-500.0,0.00014794,2]
[334854518,1723609857114,-500.0,0.00014794,2]
[334854519,1723609857123,-838.15,0.00014794,2]
[334854520,1723609857132,-632.46,0.00014794,2]
[334854521,1723609857142,-562.14,0.00014794,2]
[334854522,1723609857152,-735.43,0.00014794,2]
[334854523,1723609857162,-500.0,0.00014794,2]
[334854524,1723609857171,-924.42,0.00014794,2]
[334854525,1723609857181,-500.0,0.00014794,2]
[334854526,1723609857191,-679.38,0.00014794,2]
[334854527,1723609857201,-2016.25,0.00014794,2]
[334854528,1723609857210,-500.0,0.00014794,2]
[334854529,1723609857220,-996.84,0.00014794,2]
[334854530,1723609857230,-500.0,0.00014794,2]
[334854531,1723609857240,-2074.06,0.00014794,2]
[334854532,1723609857250,-500.0,0.00014794,2]
[334854533,1723609857259,-500.0,0.00014794,2]
[334854534,1723609857268,-500.0,0.00014794,2]
[334854535,1723609857277,-1744.71,0.00014794,2]
[334854536,1723609857287,-500.0,0.00014794,2]
[334854537,1723609857296,-993.13,0.00014794,2]
[334854538,1723609857306,-1346.19,0.00014794,2]
[334854539,1723609857316,-571.62,0.00014794,2]
[334854540,1723609857325,-1990.94,0.00014794,2]
[334854541,1723609857335,-1138.63,0.00014794,2]
[334854542,1723609857344,-500.0,0.00014794,2]
[334854543,1723609857354,-500.0,0.00014794,2]
[334854544,1723609857363,-500.0,0.00014794,2]
[334854545,1723609857372,-500.0,0.00014794,2]
[334854546,1723609857382,-1184.63,0.00014794,2]
[334854547,1723609857391,-570.91,0.00014794,2]
[334854548,1723609857401,-2160.46,0.00014794,2]
[334854549,1723609857410,-989.17,0.00014794,2]
[334854550,1723609857420,-1186.27,0.00014794,2]
[334854551,1723609857429,-500.0,0.00014794,2]
[334854552,1723609857438,-500.0,0.00014794,2]
[334854553,1723609857448,-500.0,0.00014794,2]
[334854554,1723609857457,-500.0,0.00014794,2]
[334854555,1723609857467,-1867.57,0.00014794,2]
[334854556,1723609857476,-1273.12,0.00014794,2]
[334854557,1723609857486,-629.81,0.00014794,2]
[334854558,1723609857495,-500.0,0.00014794,2]
[334854559,1723609857505,-787.73,0.00014794,2]
[334854560,1723609857514,-500.0,0.00014794,2]
[334854561,1723609857523,-840.85,0.00014794,2]
[334854562,1723609857532,-500.0,0.00014794,2]
[334854563,1723609857541,-500.0,0.00014794,2]
[334854564,1723609857550,-500.0,0.00014794,2]
[334854565,1723609857559,-816.91,0.00014794,2]
[334854566,1723609857569,-1315.34,0.00014794,2]
[334854567,1723609857577,-500.0,0.00014794,2]
[334854568,1723609857586,-333.25998602,0.00014794,2]
[334854569,1723609857596,-742.37,0.00014794,2]
[334854570,1723609857605,-2161.83,0.00014794,2]
[334854571,1723609857614,-500.0,0.00014794,2]
[334854572,1723609857623,-166.09549554,0.00014794,2]
[334854573,1723609857633,-500.0,0.00014794,2]
[334854574,1723609857642,-682.41,0.00014794,2]
[334854575,1723609857652,-1020.28,0.00014794,2]
[334854576,1723609857662,-823.18,0.00014794,2]
[334854577,1723609857671,-697.5,0.00014794,2]
[334854578,1723609857681,-500.0,0.00014794,2]
[334854579,1723609857690,-500.0,0.00014794,2]
[334854580,1723609857701,-500.0,0.00014794,2]
[334854581,1723609857711,-529.04,0.00014794,2]
[334854582,1723609857721,-500.0,0.00014794,2]
[334854583,1723609857731,-1026.61,0.00014794,2]
[334854584,1723609857740,-500.0,0.00014794,2]
[334854585,1723609857750,-1426.92,0.00014794,2]
[334854586,1723609857759,-934.99,0.00014794,2]
[334854587,1723609857770,-500.0,0.00014794,2]
[334854588,1723609857779,-1110.01,0.00014794,2]
[334854589,1723609857789,-500.0,0.00014794,2]
[334854590,1723609857799,-1062.19,0.00014794,2]
[334854591,1723609857809,-1885.75,0.00014794,2]
[334854592,1723609857819,-1081.43,0.00014794,2]
[334854593,1723609857828,-1417.64,0.00014794,2]
[334854594,1723609857838,-500.0,0.00014794,2]
[334854595,1723609857847,-500.0,0.00014794,2]
[334854596,1723609857856,-500.0,0.00014794,2]
[334854597,1723609857866,-687.0,0.00014794,2]
[334854598,1723609857875,-500.0,0.00014794,2]
[334854599,1723609857885,-779.74,0.00014794,2]
[334854600,1723609857894,-681.03,0.00014794,2]
[334854601,1723609857905,-500.0,0.00014794,2]
[334854602,1723609857915,-500.0,0.00014794,2]
[334854603,1723609857925,-533.04,0.00014794,2]
[334854604,1723609857934,-500.0,0.00014794,2]
[334854605,1723609857943,-648.57,0.00014794,2]
[334854606,1723609857953,-500.0,0.00014794,2]
[334854607,1723609857963,-859.4,0.00014794,2]
[334854608,1723609857972,-500.0,0.00014794,2]
[334854609,1723609857982,-573.93,0.00014794,2]
[334854610,1723609857993,-500.0,0.00014794,2]
[334854611,1723609858003,-575.8,0.00014794,2]
[334854612,1723609858012,-500.0,0.00014794,2]
[334854613,1723609858022,-1073.74,0.00014794,2]
[334854614,1723609858031,-2787.92,0.00014794,2]
[334854615,1723609858042,-784.46,0.00014794,2]
[334854616,1723609858051,-548.88,0.00014794,2]
[334854617,1723609858060,-500.0,0.00014794,2]
[334854618,1723609858070,-813.12,0.00014794,2]
[334854619,1723609858079,-1169.53,0.00014794,2]
[334854620,1723609858088,-500.0,0.00014794,2]
[334854621,1723609858098,-500.0,0.00014794,2]
[334854622,1723609858107,-500.0,0.00014794,2]
[334854623,1723609858116,-550.41,0.00014794,2]
[334854624,1723609858125,-500.0,0.00014794,2]
[334854625,1723609858134,-874.05,0.00014794,2]
[334854626,1723609858144,-662.44,0.00014794,2]
[334854627,1723609858154,-514.89,0.00014794,2]
[334854628,1723609858163,-897.12,0.00014794,2]
[334854629,1723609858173,-500.0,0.00014794,2]
[334854630,1723609858182,-722.1,0.00014794,2]
[334854631,1723609858192,-1677.46,0.00014794,2]
[334854632,1723609858202,-211.41997582,0.00014794,2]
[334854633,1723609858211,-827.12,0.00014794,2]
[334854634,1723609858226,-1331.11,0.00014794,2]
[334854635,1723609858236,-500.0,0.00014794,2]
[334854636,1723609858245,-500.0,0.00014794,2]
[334854637,1723609858254,-747.02,0.00014794,2]
[334854638,1723609858263,-500.0,0.00014794,2]
[334854639,1723609858272,-979.9,0.00014794,2]
[334854640,1723609858281,-500.0,0.00014794,2]
[334854641,1723609858290,-1337.17,0.00014794,2]
[334854642,1723609858299,-2317.78,0.00014794,2]
[334854643,1723609858308,-1767.63,0.00014794,2]
[334854644,1723609858318,-768.37,0.00014794,2]
[334854645,1723609858327,-500.0,0.00014794,2]
[334854646,1723609858336,-1308.24,0.00014794,2]
[334854647,1723609858346,-665.33,0.00014794,2]
[334854648,1723609858355,-1152.45,0.00014794,2]
[334854649,1723609858364,-500.0,0.00014794,2]
[334854650,1723609858373,-500.0,0.00014794,2]
[334854651,1723609858383,-500.0,0.00014794,2]
[334854652,1723609858392,-500.0,0.00014794,2]
[334854653,1723609858403,-573.78,0.00014794,2]
[334854654,1723609858412,-561.17,0.00014794,2]
[334854655,1723609858421,-543.31,0.00014794,2]
[334854656,1723609858431,-727.32,0.00014794,2]
[334854657,1723609858440,-1911.45,0.00014794,2]
[334854658,1723609858450,-793.97,0.00014794,2]
[334854659,1723609858459,-500.0,0.00014794,2]
[334854660,1723609858468,-500.0,0.00014794,2]
[334854661,1723609858477,-500.0,0.00014794,2]
[334854662,1723609858487,-574.12,0.00014794,2]
[334854663,1723609858496,-500.0,0.00014794,2]
[334854664,1723609858505,-1032.04,0.00014794,2]
[334854665,1723609858514,-831.96,0.00014794,2]
[334854666,1723609858523,-500.0,0.00014794,2]